bitfinex/quotes_SOLUSD_20240906
["timestamp","ask_amount","ask_price","bid_price","bid_amount"]
[1725647642777,1.97786028,126.44,126.39,6.5901]
[1725647643076,1.97786028,126.44,126.37,23.2066]
[1725647643077,7.9126,126.38,126.37,15.2935]
[1725647643375,7.9132,126.37,126.36,6.3222]
[1725647643680,7.9128,126.38,126.36,6.3222]
[1725647644265,7.9132,126.37,126.36,6.3222]
[1725647644464,7.9132,126.37,126.34,16.3021]
[1725647644465,19.7809,126.39,126.31,16.3021]
[1725647644666,1.97893397,126.38,126.31,16.3021]
[1725647645259,7.916,126.33,126.31,16.3021]
[1725647645454,21.76263607,126.37,126.31,16.3021]
[1725647645455,7.9164,126.32,126.31,16.3021]
[1725647645873,19.7837,126.37,126.31,16.3021]
[1725647645874,21.76287196,126.37,126.31,16.3021]
[1725647646053,20.0,126.36,126.31,16.3021]
[1725647646371,7.9162,126.33,126.31,16.3021]
[1725647647369,7.9165,126.32,126.3,6.5352]
[1725647647780,7.9165,126.32,126.28,43.2103]
[1725647647781,7.9172,126.31,126.28,15.4947]
[1725647648154,7.9172,126.31,126.27,6.3749]
[1725647648354,19.7868,126.35,126.27,6.3749]
[1725647648355,7.9181,126.3,126.27,6.3749]
[1725647648676,19.7899,126.33,126.27,6.3749]
[1725647648853,7.9182,126.29,126.27,6.3749]
[1725647649049,7.9168,126.32,126.27,14.2939]
[1725647649267,19.786,126.36,126.27,6.3749]
[1725647649469,19.7881,126.34,126.27,6.3749]
[1725647649658,21.76765116,126.34,126.27,6.3749]
[1725647649866,7.9181,126.3,126.27,6.3749]
[1725647650184,21.76765116,126.34,126.26,7.9201]
[1725647650185,19.7881,126.34,126.26,7.9201]
[1725647650380,19.7881,126.34,126.27,6.1579]
[1725647650381,7.9177,126.3,126.27,6.1579]
[1725647650952,19.7881,126.34,126.27,6.1579]
[1725647651157,19.7881,126.34,126.27,14.077]
[1725647652271,7.917,126.31,126.27,14.077]
[1725647652658,7.917,126.31,126.27,6.1579]
[1725647653068,7.9184,126.29,126.27,6.1579]
[1725647653387,7.9193,126.28,126.25,15.4947]
[1725647654076,7.9181,126.3,126.25,15.4947]
[1725647654382,22.88035471,126.35,126.26,19.7998]
[1725647654586,7.9159,126.33,126.28,19.7971]
[1725647655257,19.7829,126.38,126.26,39.599]
[1725647655463,21.76337254,126.37,126.27,6.1484]
[1725647655693,7.9171,126.31,126.27,14.0677]
[1725647655880,7.9165,126.32,126.27,14.0677]
[1725647656081,7.9181,126.3,126.27,6.1484]
[1725647656383,1.97978432,126.32,126.27,6.1484]
[1725647656555,1.97998956,126.31,126.25,15.4947]
[1725647656758,7.9184,126.29,126.25,15.4947]
[1725647656967,7.919,126.28,126.25,15.4947]
[1725647657660,7.9176,126.3,126.26,7.9199]
[1725647658164,7.9166,126.32,126.27,19.7985]
[1725647658372,7.9159,126.33,126.28,7.9185]
[1725647658583,6.33788859,126.4,126.26,1.58354144]
[1725647658773,7.9152,126.34,126.29,19.7952]
[1725647659168,7.9157,126.33,126.29,27.7133]
[1725647660708,7.9143,126.36,126.31,23.5201]
[1725647660991,7.9143,126.36,126.31,43.3122]
[1725647660992,7.9139,126.36,126.31,43.3122]
[1725647661366,7.9134,126.37,126.33,7.9157]
[1725647661583,7.9134,126.37,126.32,7.9162]
[1725647662084,7.9118,126.4,126.35,7.9144]
[1725647662393,7.912,126.39,126.35,7.9144]
[1725647662588,21.75324648,126.43,126.33,19.7888]
[1725647662781,24.86300668,126.43,126.33,19.7888]
[1725647663267,7.9125,126.39,126.34,7.9146]
[1725647663469,7.9128,126.38,126.33,27.7044]
[1725647663881,7.9138,126.37,126.33,19.7888]
[1725647664064,7.914,126.36,126.31,23.5201]
[1725647664271,7.9147,126.35,126.31,23.5201]
[1725647664586,7.9134,126.37,126.33,7.9157]
[1725647664779,19.7805,126.39,126.31,15.6032]
[1725647664780,7.9143,126.36,126.31,23.5198]
[1725647665597,7.9146,126.35,126.31,15.6032]
[1725647665966,1.97890098,126.41,126.32,19.7902]
[1725647666274,21.75755263,126.4,126.32,27.7064]
[1725647666576,21.75755263,126.4,126.31,15.6032]
[1725647666577,19.7825,126.38,126.31,15.6032]
[1725647666771,7.9153,126.34,126.31,15.6032]
[1725647667463,21.76154857,126.38,126.31,15.6032]
[1725647667464,7.9159,126.33,126.31,15.6032]
[1725647667663,1.9790598,126.37,126.3,6.3796]
[1725647667886,7.9178,126.3,126.28,16.0983]
[1725647668088,7.9171,126.31,126.28,16.0983]
[1725647668786,7.9179,126.3,126.28,16.0983]
[1725647668971,7.9182,126.29,126.28,16.0983]
[1725647669292,19.7896,126.33,126.28,16.0983]
[1725647669988,7.9177,126.3,126.28,16.0983]
[1725647670176,39.5716,126.36,126.28,16.0983]
[1725647670177,7.9172,126.31,126.28,16.0983]
[1725647670487,21.76537848,126.36,126.28,16.0983]
[1725647670678,7.9168,126.32,126.28,16.0983]
[1725647670878,21.76746305,126.34,126.28,16.0983]
[1725647671589,7.918,126.3,126.28,16.0983]
[1725647672992,7.9171,126.31,126.28,16.0983]
[1725647673689,7.9176,126.3,126.28,16.0983]
[1725647674076,7.9189,126.28,126.27,6.2242]
[1725647674591,7.9196,126.27,126.25,15.3372]
[1725647674775,1.98000779,126.31,126.22,15.0281]
[1725647674776,19.7944,126.3,126.22,15.0281]
[1725647674967,7.9205,126.26,126.22,22.9506]
[1725647675167,1.98023255,126.25,126.17,15.0281]
[1725647675478,4.3585,126.32,126.19,19.8112]
[1725647675479,1.98023255,126.29,126.19,19.8112]
[1725647675787,7.9221,126.23,126.19,27.7353]
[1725647676793,7.9215,126.24,126.2,7.9238]
[1725647677094,44.65256791,126.3,126.17,16.61273451]
[1725647677095,7.9228,126.22,126.17,22.9537]
[1725647677296,7.9228,126.22,126.17,15.0281]
[1725647677690,7.9233,126.21,126.17,22.9536]
[1725647677885,7.9233,126.21,126.17,7.9255]
[1725647678087,7.926,126.17,126.13,36.3306]
[1725647678478,20.0,126.2,126.14,7.9276]
[1725647678797,7.9249,126.19,126.15,7.9269]
[1725647679096,7.9237,126.21,126.16,7.9262]
[1725647679293,7.9234,126.21,126.16,7.9262]
[1725647679790,7.924,126.2,126.16,7.9262]
[1725647679993,7.924,126.2,126.15,27.7439]
[1725647680373,7.9247,126.19,126.15,19.8171]
[1725647680570,7.9252,126.18,126.14,7.9276]
[1725647681195,7.9247,126.19,126.14,7.9276]
[1725647681896,7.9247,126.19,126.15,7.927]
[1725647682080,7.9247,126.19,126.15,7.427]
[1725647682280,7.9247,126.19,126.14,27.7463]
[1725647682481,7.9271,126.15,126.13,16.5111]
[1725647682998,7.9276,126.14,126.09,23.4114]
[1725647683197,19.8177,126.15,126.09,15.481]
[1725647683382,7.9296,126.11,126.09,15.481]
[1725647683580,19.8223,126.13,126.04,30.077]
[1725647683988,19.8223,126.13,126.05,7.9333]
[1725647684196,19.8223,126.13,126.04,41.9778]
[1725647684377,21.80509647,126.13,126.04,16.9778]
[1725647684581,1.98279647,126.12,126.04,16.9778]
[1725647684988,4.3585,126.16,126.01,39.6767]
[1725647684989,21.80035013,126.16,126.06,19.8311]
[1725647685291,7.9289,126.12,126.07,7.9319]
[1725647685695,7.9282,126.14,126.09,7.9303]
[1725647685911,7.929,126.12,126.08,27.7595]
[1725647686198,7.9282,126.14,126.08,19.8282]
[1725647686393,7.9286,126.13,126.08,19.8282]
[1725647686597,7.9291,126.12,126.08,19.8282]
[1725647686780,7.9285,126.13,126.08,27.7596]
[1725647686997,7.9282,126.14,126.1,7.9301]
[1725647687197,7.9284,126.13,126.09,7.9306]
[1725647687403,42.87088536,126.17,126.1,7.9301]
[1725647687404,7.9278,126.14,126.1,7.9301]
[1725647687591,7.9264,126.16,126.1,19.8251]
[1725647687792,7.9257,126.18,126.13,7.9279]
[1725647688006,19.8109,126.2,126.13,7.9279]
[1725647688193,21.79288626,126.2,126.13,7.9279]
[1725647688518,7.9249,126.19,126.14,27.7459]
[1725647688691,7.9241,126.2,126.14,19.8185]
[1725647688891,27.95172678,126.23,126.16,7.926]
[1725647688892,7.9233,126.21,126.16,7.926]
[1725647689098,19.8058,126.23,126.14,19.8185]
[1725647689099,7.9241,126.2,126.14,21.40353495]
[1725647689298,7.9241,126.2,126.16,7.9263]
[1725647689499,7.9235,126.21,126.16,7.9263]
[1725647690038,7.9234,126.21,126.17,7.9254]
[1725647690394,1.98115418,126.25,126.16,19.8155]
[1725647691019,7.9233,126.21,126.16,27.7417]
[1725647692004,7.9226,126.23,126.16,19.8155]
[1725647692225,21.4009,126.27,126.18,19.812]
[1725647692226,7.9215,126.24,126.18,19.812]
[1725647692524,7.9221,126.23,126.18,27.7367]
[1725647692724,7.9221,126.23,126.19,7.9244]
[1725647694709,5.06339009,126.28,126.2,19.8094]
[1725647695029,7.926,126.17,126.12,7.9288]
[1725647695323,6.1822,126.22,126.07,31.6592266]
[1725647695324,1.98193826,126.21,126.07,21.8262]
[1725647695527,7.9297,126.11,126.07,21.8262]
[1725647695837,7.9291,126.12,126.08,7.9312]
[1725647696124,7.9272,126.15,126.11,7.9295]
[1725647696315,19.8124,126.19,126.11,7.9295]
[1725647696525,20.0,126.18,126.11,7.9295]
[1725647696734,21.98208125,126.18,126.11,7.9295]
[1725647697228,7.9275,126.15,126.11,7.9295]
[1725647697416,7.9278,126.14,126.1,7.9299]
[1725647699124,7.9285,126.13,126.07,17.46492961]
[1725647699322,19.8156,126.17,126.1,7.9302]
[1725647699517,1.98214357,126.16,126.1,7.9302]
[1725647699723,19.8156,126.17,126.09,7.9306]
[1725647699724,1.98231694,126.15,126.09,7.9306]
[1725647699919,1.98231694,126.15,126.08,19.8281]
[1725647700120,1.98247424,126.16,126.09,7.9307]
[1725647700333,1.98230963,126.19,126.1,19.8248]
[1725647700518,1.98215843,126.18,126.1,19.8248]
[1725647700920,21.79535843,126.18,126.1,19.8248]
[1725647701414,7.9277,126.14,126.1,9.8248]
[1725647701811,22.99188544,126.19,126.07,58.70916266]
[1725647702027,1.98189559,126.2,126.08,45.0]
[1725647702334,7.9262,126.17,126.13,7.9282]
[1725647702708,8.16392633,126.22,126.14,19.8189]
[1725647702907,7.9244,126.2,126.16,7.9263]
[1725647704206,7.9233,126.21,126.17,7.9256]
[1725647704413,46.0207,126.26,126.16,19.8156]
[1725647704414,7.9221,126.23,126.18,7.9246]
[1725647704714,7.9202,126.26,126.21,7.9228]
[1725647705120,7.9202,126.26,126.2,19.8091]
[1725647705307,1.98054397,126.32,126.22,19.806]
[1725647705308,7.919,126.28,126.22,19.806]
[1725647705517,7.919,126.28,126.23,7.9219]
[1725647706032,7.9196,126.27,126.22,27.7285]
[1725647706527,7.919,126.28,126.23,7.9214]
[1725647706829,6.4027,126.32,126.23,7.9214]
[1725647706830,7.9183,126.29,126.25,7.9203]
[1725647707037,7.9183,126.29,126.24,27.7237]
[1725647707240,7.919,126.28,126.24,27.7237]
[1725647707421,7.919,126.28,126.24,19.8025]
[1725647707825,7.9184,126.29,126.24,27.7239]
[1725647708018,7.9181,126.3,126.25,7.9202]
[1725647708214,7.9188,126.29,126.24,27.7237]
[1725647708528,7.9203,126.26,126.23,22.5927]
[1725647708725,7.9201,126.27,126.22,7.9222]
[1725647708920,7.9202,126.26,126.22,7.9222]
[1725647709130,1.98042228,126.25,126.2,16.4859]
[1725647709439,7.9227,126.22,126.18,25.8287]
[1725647709643,7.9227,126.22,126.18,33.7537]
[1725647709826,1.9808267,126.25,126.16,16.4859]
[1725647710027,21.78536212,126.24,126.16,16.4859]
[1725647710334,7.9241,126.2,126.16,16.4859]
[1725647710917,7.9247,126.19,126.16,16.4859]
[1725647711116,7.9241,126.2,126.16,16.4859]
[1725647711326,20.0,126.25,126.18,7.9245]
[1725647711518,21.78121883,126.27,126.19,7.9244]
[1725647711519,21.78084523,126.27,126.19,7.9244]
[1725647711836,7.84604416,126.24,126.19,27.7351]
[1725647712239,7.9209,126.25,126.19,19.811]
[1725647712431,7.9209,126.25,126.17,1.58451006]
[1725647712432,19.7977,126.28,126.2,7.9238]
[1725647712617,19.7977,126.28,126.19,7.9241]
[1725647712820,19.7977,126.28,126.18,19.8116]
[1725647713034,1.98060521,126.3,126.22,7.9222]
[1725647713266,7.9199,126.27,126.22,7.9222]
[1725647713817,7.9191,126.28,126.22,19.8064]
[1725647714118,7.9199,126.27,126.22,19.8064]
[1725647714522,7.9202,126.26,126.22,19.8064]
[1725647714729,39.581,126.33,126.22,19.8064]
[1725647714932,1.9801815,126.32,126.22,19.8064]
[1725647715131,39.581,126.33,126.22,27.7285]
[1725647715132,7.9202,126.26,126.22,27.7285]
[1725647715552,39.581,126.33,126.2,7.9234]
[1725647715553,7.9216,126.24,126.2,7.9234]
[1725647716037,19.7975,126.28,126.16,57.70081864]
[1725647716038,19.8009,126.26,126.16,57.70081864]
[1725647716239,7.9215,126.24,126.19,7.9241]
[1725647716436,19.8009,126.26,126.18,27.7375]
[1725647716437,7.922,126.23,126.18,27.7375]
[1725647716638,7.922,126.23,126.19,7.9245]
[1725647716953,7.9216,126.24,126.18,19.8126]
[1725647717242,7.9216,126.24,126.19,7.9241]
[1725647717614,21.77748848,126.29,126.2,19.8096]
[1725647717615,19.7969,126.29,126.2,19.8096]
[1725647717821,7.9206,126.26,126.21,7.9228]
[1725647718025,7.9206,126.26,126.22,7.9226]
[1725647718251,7.9206,126.26,126.2,19.8096]
[1725647718252,7.9206,126.26,126.21,9.50712799]
[1725647718422,19.7922,126.32,126.25,7.9207]
[1725647718631,19.7922,126.32,126.23,21.8405]
[1725647718632,7.9171,126.31,126.26,9.5033824]
[1725647718834,7.9165,126.32,126.27,9.50283503]
[1725647719041,7.9165,126.32,126.23,53.4997266]
[1725647719042,7.9158,126.33,126.28,7.9184]
[1725647719243,7.9155,126.34,126.29,7.9182]
[1725647720727,7.9158,126.33,126.28,27.7156]
[1725647720931,1.9789539,126.37,126.27,7.9193]
[1725647720932,7.9164,126.32,126.27,7.9193]
[1725647721527,7.917,126.31,126.26,7.9199]
[1725647722039,7.917,126.31,126.25,19.8009]
[1725647722040,7.9165,126.32,126.27,7.9194]
[1725647722449,7.9157,126.34,126.29,7.9176]
[1725647722758,19.781,126.39,126.31,23.064]
[1725647722943,7.9143,126.36,126.31,23.064]
[1725647723245,6.2084,126.4,126.31,15.1472]
[1725647723246,7.916,126.33,126.31,15.1472]
[1725647723427,19.7836,126.37,126.31,15.1472]
[1725647723744,7.9142,126.36,126.31,23.0641]
[1725647725556,7.9142,126.36,126.31,29.2963]
[1725647725958,7.9134,126.37,126.32,7.9163]
[1725647726261,7.913,126.38,126.33,7.9153]
[1725647726635,7.9137,126.37,126.32,27.7063]
[1725647726831,19.7825,126.38,126.31,21.3794]
[1725647727037,7.9147,126.35,126.31,21.3794]
[1725647727541,19.7847,126.36,126.31,15.1472]
[1725647727848,7.9159,126.33,126.31,15.1472]
[1725647728442,7.9164,126.32,126.31,15.1472]
[1725647729837,7.917,126.31,126.27,30.1067]
[1725647730043,7.9166,126.32,126.27,30.1067]
[1725647730259,7.9173,126.31,126.27,22.1874]
[1725647730556,7.9189,126.28,126.27,15.9552]
[1725647730794,21.97972319,126.36,126.27,15.9552]
[1725647731139,21.97972319,126.36,126.27,35.754]
[1725647731455,7.9166,126.32,126.27,35.754]
[1725647731646,7.916,126.33,126.28,7.9188]
[1725647731849,7.916,126.33,126.29,7.9181]
[1725647732059,7.9155,126.34,126.29,27.7136]
[1725647732261,7.9159,126.33,126.29,19.7955]
[1725647732647,7.9159,126.33,126.29,27.7136]
[1725647732845,7.9159,126.33,126.29,19.7955]
[1725647733367,19.7846,126.37,126.3,7.9174]
[1725647733562,7.9147,126.35,126.31,14.3915]
[1725647733767,7.9147,126.35,126.31,6.4746]
[1725647733939,7.9152,126.34,126.31,6.4746]
[1725647735070,7.9141,126.36,126.31,26.2669]
[1725647735238,7.9141,126.36,126.31,34.1837]
[1725647735442,7.9145,126.35,126.31,34.1837]
[1725647735650,1.9788127,126.37,126.28,26.3674]
[1725647735984,1.9788127,126.37,126.27,15.9552]
[1725647735985,7.9184,126.29,126.27,15.9552]
[1725647736270,7.9189,126.28,126.27,15.9552]
[1725647737351,7.9184,126.29,126.27,15.9552]
[1725647737550,7.9178,126.3,126.27,15.9552]
[1725647737760,19.7873,126.35,126.28,1.58358067]
[1725647737963,45.9594,126.4,126.27,15.9552]
[1725647737964,19.7826,126.38,126.27,17.53850859]
[1725647738261,19.7826,126.38,126.29,7.9181]
[1725647738262,7.9159,126.33,126.29,7.9181]
[1725647738767,7.9164,126.32,126.28,27.7155]
[1725647738971,7.9164,126.32,126.28,19.7968]
[1725647739147,19.7853,126.36,126.27,15.9552]
[1725647739353,7.9168,126.32,126.27,23.8744]
[1725647739955,19.7853,126.36,126.27,23.8744]
[1725647739956,7.916,126.33,126.28,7.9187]
[1725647740352,7.9153,126.34,126.29,19.795]
[1725647740668,7.9147,126.35,126.3,7.9172]
[1725647741063,21.76020592,126.39,126.31,19.792]
[1725647741064,7.9139,126.36,126.31,19.792]
[1725647741875,7.9139,126.36,126.32,1.58285675]
[1725647742081,7.9139,126.36,126.31,27.7088]
[1725647742376,7.9134,126.37,126.32,59.0129]
[1725647742963,19.781,126.39,126.33,7.9157]
[1725647743761,19.781,126.39,126.34,15.5903]
[1725647744267,7.9134,126.37,126.34,15.5903]
[1725647744466,7.9149,126.35,126.32,51.0969]
[1725647744671,7.9149,126.35,126.32,6.0969]
[1725647745878,7.9151,126.34,126.31,19.792]
[1725647746080,19.7834,126.37,126.3,15.5903]
[1725647746252,1.9789513,126.36,126.3,15.5903]
[1725647746880,21.7651513,126.36,126.3,15.5903]
[1725647747060,7.9162,126.33,126.3,15.5903]
[1725647747257,19.7862,126.36,126.3,15.5903]
[1725647747258,7.9164,126.32,126.3,15.5903]
[1725647747864,7.9162,126.33,126.3,15.5903]
[1725647748177,7.9142,126.36,126.3,36.96746509]
[1725647748484,7.9142,126.36,126.32,7.916]
[1725647748975,7.9134,126.37,126.33,7.9156]
[1725647749555,7.9139,126.36,126.32,7.9161]
[1725647749759,7.9145,126.35,126.31,72.7077]
[1725647749953,7.9139,126.36,126.32,7.916]
[1725647750579,19.7769,126.41,126.34,7.915]
[1725647750881,20.0,126.4,126.34,7.915]
[1725647751479,7.9133,126.37,126.33,7.9155]
[1725647752366,7.914,126.36,126.32,19.7895]
[1725647752562,19.7806,126.39,126.32,19.7895]
[1725647752765,1.97844634,126.4,126.37,7.9128]
[1725647752951,7.913,126.38,126.34,6.1389]
[1725647753152,6.2321,126.45,126.34,7.72146414]
[1725647753373,19.7733,126.44,126.37,7.9131]
[1725647753565,7.9092,126.44,126.39,7.9115]
[1725647753766,19.769,126.47,126.38,24.2794]
[1725647753767,7.9099,126.43,126.38,24.2794]
[1725647754066,7.9099,126.43,126.39,7.9119]
[1725647754384,7.9109,126.41,126.38,16.3673]
[1725647754677,1.9774922,126.46,126.34,42.207]
[1725647754678,7.9131,126.38,126.34,42.207]
[1725647754882,1.97833615,126.42,126.34,16.2815]
[1725647755058,1.97833615,126.42,126.3,22.8043]
[1725647755059,7.9158,126.33,126.3,22.8043]
[1725647755881,7.9153,126.34,126.3,30.7219]
[1725647756066,7.9147,126.35,126.3,30.7219]
[1725647756380,7.9153,126.34,126.3,50.5159]
[1725647758184,7.9146,126.35,126.31,7.9169]
[1725647758365,19.7835,126.37,126.3,42.5983]
[1725647758563,7.9151,126.34,126.3,50.5157]
[1725647759887,7.918,126.3,126.27,23.1859]
[1725647760059,7.9185,126.29,126.27,23.1859]
[1725647760264,7.9189,126.28,126.27,16.5738]
[1725647761390,7.9196,126.27,126.24,35.8419]
[1725647761770,7.9184,126.29,126.24,35.8419]
[1725647762087,7.9164,126.32,126.28,7.9188]
[1725647762298,7.9158,126.33,126.29,7.9182]
[1725647762582,7.9152,126.34,126.29,7.9182]
[1725647762772,7.915,126.35,126.3,7.9173]
[1725647762973,6.2156,126.39,126.3,21.3769448]
[1725647763183,19.7794,126.4,126.32,7.9159]
[1725647763184,7.9133,126.37,126.32,7.9159]
[1725647763398,7.9133,126.37,126.33,7.9157]
[1725647763888,7.9143,126.36,126.31,45.0]
[1725647764099,21.75782712,126.4,126.3,19.7938]
[1725647764298,19.782,126.38,126.3,19.7938]
[1725647764591,19.782,126.38,126.29,1.58314599]
[1725647764790,19.782,126.38,126.29,45.0]
[1725647765294,19.782,126.38,126.3,7.9172]
[1725647765582,7.9146,126.35,126.31,7.9168]
[1725647765814,7.9146,126.35,126.3,7.9174]
[1725647765991,7.9153,126.34,126.3,7.9174]
[1725647766173,7.9153,126.34,126.29,72.7133]
[1725647766372,1.97894842,126.37,126.29,19.7952]
[1725647766681,1.97894842,126.37,126.28,30.3207]
[1725647766682,7.9182,126.29,126.28,16.2403]
[1725647766885,7.9182,126.29,126.25,21.8304]
[1725647767267,7.9183,126.29,126.25,29.7506]
[1725647767785,21.76788326,126.34,126.26,7.9201]
[1725647767786,7.9177,126.3,126.26,7.9201]
[1725647768297,7.9172,126.31,126.26,7.9201]
[1725647768789,7.9172,126.31,126.27,52.9193]
[1725647769174,7.9172,126.31,126.27,7.9193]
[1725647769485,7.9172,126.31,126.26,7.9199]
[1725647769878,7.9193,126.28,126.25,15.3848]
[1725647770771,7.9183,126.29,126.25,15.3848]
[1725647770982,7.9178,126.3,126.26,7.9196]
[1725647771567,7.916,126.33,126.28,7.9184]
[1725647771962,7.9165,126.32,126.28,7.9184]
[1725647772588,7.9153,126.34,126.3,7.9176]
[1725647772976,59.3478,126.38,126.29,6.0542]
[1725647772977,19.7849,126.36,126.29,6.0542]
[1725647773163,7.9164,126.32,126.29,6.0542]
[1725647773372,7.9176,126.31,126.29,6.0542]
[1725647773571,7.9176,126.31,126.27,52.9191]
[1725647773789,21.76733292,126.34,126.27,52.9191]
[1725647773790,7.9166,126.32,126.27,52.9191]
[1725647773994,7.9166,126.32,126.27,72.7177]
[1725647774197,5.03764363,126.4,126.31,15.8272]
[1725647774376,266.562,126.43,126.32,7.63683021]
[1725647774692,6.5293,126.46,126.33,126.6592266]
[1725647774870,7.9096,126.43,126.38,7.9124]
[1725647775077,6.5293,126.46,126.38,7.9124]
[1725647775781,6.5293,126.46,126.37,19.7825]
[1725647775975,20.0,126.45,126.37,19.7825]
[1725647776171,7.9108,126.41,126.37,19.7825]
[1725647776385,59.5435,126.45,126.36,15.761]
[1725647776689,60.2129,126.44,126.32,21.2407]
[1725647776894,1.97859252,126.43,126.32,21.2407]
[1725647777085,21.97859252,126.43,126.32,21.2407]
[1725647777283,7.9149,126.35,126.32,21.2407]
[1725647778080,19.7837,126.37,126.28,42.2855]
[1725647778389,7.9165,126.32,126.28,42.2855]
[1725647778784,7.9159,126.33,126.28,50.2043]
[1725647779197,21.76271165,126.37,126.28,50.2043]
[1725647779198,19.7867,126.35,126.28,22.4893]
[1725647779393,7.9178,126.3,126.28,22.4893]
[1725647779592,7.9174,126.31,126.28,22.4893]
[1725647779781,7.9178,126.3,126.28,22.4893]
[1725647780097,7.9171,126.31,126.28,22.4893]
[1725647781385,39.5714,126.36,126.25,21.9101]
[1725647781386,1.97923448,126.34,126.25,21.9101]
[1725647781984,7.9191,126.28,126.25,21.9101]
[1725647782696,7.9184,126.29,126.25,21.9101]
[1725647783485,7.919,126.28,126.25,21.9101]
[1725647783685,7.9201,126.26,126.25,15.368]
[1725647784086,7.92,126.27,126.25,15.368]
[1725647784677,7.9178,126.3,126.25,23.2882]
[1725647784874,7.9185,126.29,126.25,24.87187667]
[1725647785294,7.9177,126.3,126.26,52.92]
[1725647785885,1.97954929,126.33,126.25,15.368]
[1725647786096,19.7927,126.31,126.25,15.368]
[1725647786300,7.9193,126.28,126.25,15.368]
[1725647786504,7.9198,126.27,126.25,15.368]
[1725647787786,39.5805,126.33,126.25,23.2883]
[1725647788111,7.919,126.28,126.25,15.368]
[1725647788910,39.7911,126.32,126.25,15.368]
[1725647789086,7.9193,126.28,126.25,15.368]
[1725647789485,7.9185,126.29,126.25,23.2887]
[1725647790086,7.919,126.28,126.25,15.368]
[1725647791094,39.7911,126.32,126.25,15.368]
[1725647791095,19.7947,126.3,126.25,15.368]
[1725647791303,7.9219,126.24,126.21,16.1879]
[1725647791503,7.9226,126.22,126.21,16.1879]
[1725647791806,7.9226,126.22,126.18,26.3643]
[1725647791807,1.98050703,126.27,126.18,22.3847]
[1725647792104,7.924,126.2,126.18,22.3847]
[1725647792483,65.0,126.29,126.18,22.3847]
[1725647792484,7.9245,126.19,126.18,15.8318]
[1725647792686,19.8068,126.22,126.15,6.2747]
[1725647792889,1.98149373,126.21,126.14,15.8318]
[1725647793102,7.9265,126.16,126.12,19.8215]
[1725647793704,7.9265,126.16,126.12,27.7503]
[1725647794004,7.9259,126.17,126.12,27.7503]
[1725647794383,7.9259,126.17,126.13,7.9281]
[1725647794795,7.9253,126.18,126.13,7.9281]
[1725647794998,7.9243,126.2,126.16,7.9264]
[1725647795186,7.9234,126.21,126.16,7.9264]
[1725647795687,7.9234,126.21,126.17,7.9256]
[1725647796280,7.9227,126.22,126.17,7.9256]
[1725647796691,7.9233,126.21,126.17,7.9256]
[1725647798499,7.9228,126.22,126.17,24.4844]
[1725647799205,7.9218,126.24,126.19,7.924]
[1725647799994,7.9221,126.23,126.18,27.7376]
[1725647800207,19.8012,126.26,126.19,7.9245]
[1725647800420,11.49313279,126.29,126.19,6.6363]
[1725647800588,20.0,126.28,126.2,19.8096]
[1725647800794,7.9211,126.25,126.21,7.9229]
[1725647802299,19.7991,126.27,126.19,6.6363]
[1725647802503,7.923,126.22,126.19,6.6363]
[1725647803500,19.7991,126.27,126.19,34.3714]
[1725647803699,19.7991,126.27,126.19,26.4474]
[1725647803700,20.0,126.26,126.19,26.4474]
[1725647803900,7.9227,126.22,126.19,26.4474]
[1725647804098,7.9227,126.22,126.19,6.6363]